bitfinex/quotes_SOLUSD_20251226
["timestamp","ask_amount","ask_price","bid_price","bid_amount"]
[1766712062322,0.66000001,120.64,120.6,2.9954253]
[1766712063922,0.66000001,120.64,120.6,4.27714232]
[1766712064123,4.22714233,120.64,120.6,0.71]
[1766712064436,0.66,120.63,120.6,0.71]
[1766712065239,0.66,120.63,120.6,4.27714232]
[1766712067231,0.66,120.63,120.6,66.97714232]
[1766712069232,1e-08,120.64,120.62,0.71]
[1766712069916,0.66000001,120.64,120.61,4.27714232]
[1766712070117,0.66000001,120.64,120.6,66.97714232]
[1766712070832,0.66,120.63,120.6,66.97714232]
[1766712071939,0.66,120.63,120.61,0.71]
[1766712072435,4.22714232,120.63,120.6,62.7]
[1766712072611,14.00481529,120.64,120.6,63.41]
[1766712072815,0.66,120.63,120.6,63.41]
[1766712074736,0.7,120.62,120.6,62.7]
[1766712075319,0.7,120.62,120.6,63.37]
[1766712077360,0.7,120.62,120.6,62.7]
[1766712078248,11.85697981,120.63,120.6,63.37]
[1766712078549,12.55697981,120.63,120.6,63.37]
[1766712078952,11.85697981,120.63,120.58,62.7]
[1766712079127,4.26714232,120.62,120.59,0.67]
[1766712079739,0.7,120.61,120.59,0.67]
[1766712079923,0.7,120.61,120.58,63.37]
[1766712082146,0.7,120.61,120.59,0.67]
[1766712084323,0.7,120.6,120.58,62.7]
[1766712084523,0.7,120.59,120.55,4.23714232]
[1766712084728,0.7,120.57,120.54,0.67]
[1766712084944,0.7,120.58,120.55,0.67]
[1766712085451,4.26714232,120.58,120.55,0.67]
[1766712085655,3.56714232,120.57,120.52,3.56714232]
[1766712085830,0.7,120.56,120.52,4.23714232]
[1766712086233,0.7,120.56,120.53,0.67]
[1766712086843,12.56110623,120.57,120.53,0.67]
[1766712087144,4.26714232,120.57,120.53,3.56714232]
[1766712087327,4.26714232,120.57,120.54,0.67]
[1766712090728,4.26714232,120.57,120.54,63.37]
[1766712091151,0.7,120.57,120.54,63.37]
[1766712091350,4.26714232,120.57,120.54,63.37]
[1766712092041,24.91383963,120.6,120.56,3.56714232]
[1766712092380,4.26714232,120.61,120.58,0.67]
[1766712092744,3.56714232,120.6,120.58,0.67]
[1766712093252,4.26714232,120.6,120.57,0.67]
[1766712093631,3.56714232,120.59,120.54,74.56284679]
[1766712093823,3.56714232,120.59,120.55,0.67]
[1766712094029,4.26714232,120.59,120.56,0.67]
[1766712095758,0.7,120.6,120.57,0.67]
[1766712096458,8.29148131,120.61,120.55,62.7]
[1766712096756,4.26714232,120.59,120.56,0.67]
[1766712096962,0.7,120.59,120.56,0.67]
[1766712097160,4.26714232,120.58,120.55,63.37]
[1766712098540,8.29260278,120.59,120.55,62.7]
[1766712098750,0.7,120.58,120.55,63.37]
[1766712099064,4.26714232,120.58,120.55,63.37]
[1766712099579,12.56043403,120.58,120.55,63.37]
[1766712099905,3.56714232,120.57,120.55,63.37]
[1766712100359,4.26714232,120.56,120.52,0.67]
[1766712100752,0.7,120.56,120.52,0.67]
[1766712101254,4.26714232,120.56,120.52,0.67]
[1766712103554,12.5618287,120.56,120.52,0.67]
[1766712103965,4.26714232,120.56,120.52,0.67]
[1766712105379,4.26714232,120.56,120.52,62.7]
[1766712105668,4.26714232,120.56,120.53,0.69]
[1766712108173,12.5617675,120.56,120.53,0.69]
[1766712108677,4.26714232,120.56,120.53,0.69]
[1766712109953,0.7,120.56,120.53,0.69]
[1766712110175,12.52133188,120.57,120.53,0.69]
[1766712111164,12.52133188,120.57,120.53,63.39]
[1766712111371,8.95418956,120.57,120.54,0.69]
[1766712111574,12.52133188,120.57,120.54,0.69]
[1766712111990,31.1699119,120.59,120.54,0.69]
[1766712111991,8.2937545,120.58,120.54,0.69]
[1766712112283,11.09767296,120.58,120.54,0.69]
[1766712112462,14.66481528,120.58,120.54,0.69]
[1766712112661,14.00481528,120.58,120.54,0.69]
[1766712112865,14.00481528,120.58,120.55,0.69]
[1766712113602,14.66481528,120.58,120.55,0.69]
[1766712117085,14.66481528,120.58,120.55,63.39]
[1766712118084,14.00481528,120.58,120.55,62.7]
[1766712118277,22.95687295,120.6,120.56,0.69]
[1766712118581,22.95687295,120.6,120.56,63.39]
[1766712118781,0.66,120.59,120.56,63.39]
[1766712119183,4.22714232,120.59,120.56,63.39]
[1766712119378,11.09767296,120.6,120.57,0.69]
[1766712119786,14.66481528,120.6,120.57,0.69]
[1766712120592,0.66,120.59,120.56,63.39]
[1766712120776,4.22714232,120.59,120.56,63.39]
[1766712121782,0.66,120.59,120.56,63.39]
[1766712127693,8.95262743,120.59,120.56,63.39]
[1766712128767,11.23731234,120.59,120.56,63.39]
[1766712129998,8.95262743,120.59,120.56,63.39]
[1766712130199,11.23731234,120.59,120.56,63.39]
[1766712138578,5.58839127,120.58,120.56,63.39]
[1766712139505,7.87307618,120.58,120.56,63.39]
[1766712139703,8.95262743,120.59,120.56,63.39]
[1766712139913,7.87352691,120.58,120.56,63.39]
[1766712140104,2.28468491,120.58,120.56,63.39]
[1766712140306,10.57799336,120.58,120.56,63.39]
[1766712140608,10.57799336,120.58,120.53,60.38000001]
[1766712141387,11.26799336,120.58,120.53,60.38000001]
[1766712142108,7.87455063,120.57,120.53,60.38000001]
[1766712142314,2.28468491,120.57,120.53,60.38000001]
[1766712142808,2.28468491,120.57,120.54,0.69]
[1766712143682,11.26799336,120.58,120.54,0.69]
[1766712143902,5.59006228,120.57,120.54,0.69]
[1766712144097,7.87474719,120.57,120.54,0.69]
[1766712144309,2.28468491,120.57,120.54,0.69]
[1766712144508,2.28468491,120.57,120.53,60.38000001]
[1766712144509,2.28468491,120.56,120.53,60.38000001]
[1766712144712,2.97468491,120.55,120.53,61.07000001]
[1766712144934,2.28468491,120.56,120.53,61.07000001]
[1766712145206,2.97468491,120.56,120.53,61.07000001]
[1766712145983,0.69,120.56,120.54,0.69]
[1766712146183,29.0239655,120.59,120.54,0.69]
[1766712146391,8.56443185,120.58,120.55,0.69]
[1766712146587,5.58974694,120.57,120.55,0.69]
[1766712146802,10.57820533,120.58,120.55,0.69]
[1766712147812,2.28468491,120.57,120.55,0.69]
[1766712149418,2.28468491,120.57,120.55,61.07000001]
[1766712150017,8.98352042,120.58,120.55,61.07000001]
[1766712150194,2.28468491,120.57,120.55,61.07000001]
[1766712150793,11.26820533,120.58,120.55,61.07000001]
[1766712151106,6.28097867,120.57,120.55,60.38000001]
[1766712151308,0.69,120.57,120.55,60.38000001]
[1766712154093,8.98352042,120.58,120.55,61.07000001]
[1766712154294,5.59259167,120.57,120.55,61.07000001]
[1766712154495,5.59259167,120.57,120.56,0.69]
[1766712154904,6.28259167,120.57,120.55,60.38000001]
[1766712155124,0.69,120.57,120.55,60.38000001]
[1766712156894,0.69,120.55,120.49,11.12767296]
[1766712157106,2.28468491,120.53,120.49,0.69]
[1766712157307,10.43767296,120.53,120.49,0.69]
[1766712157526,2.28468491,120.52,120.49,0.69]
[1766712157727,0.69,120.5,120.48,0.79475851]
[1766712158104,11.12767296,120.51,120.48,1.48475851]
[1766712158324,5.58746164,120.5,120.48,1.48475851]
[1766712159121,11.12767296,120.51,120.48,1.48475851]
[1766712159525,10.43767296,120.51,120.48,0.79475851]
[1766712159702,10.43767296,120.51,120.49,0.69]
[1766712159902,10.43767296,120.51,120.48,0.79475851]
[1766712160104,12.72235787,120.51,120.49,0.69]
[1766712160319,2.28468491,120.51,120.49,0.69]
[1766712160519,2.28468491,120.51,120.48,1.48475851]
[1766712160831,2.28468491,120.5,120.48,1.48475851]
[1766712161007,2.28468491,120.5,120.48,0.79475851]
[1766712161202,2.97468491,120.5,120.48,0.79475851]
[1766712161404,8.29762882,120.52,120.48,1.48475851]
[1766712161405,2.97468491,120.51,120.48,1.48475851]
[1766712161640,2.28468491,120.5,120.48,1.48475851]
[1766712162136,2.97468491,120.51,120.48,1.48475851]
[1766712162502,2.28468491,120.51,120.49,0.71]
[1766712162715,2.28468491,120.51,120.48,0.79475851]
[1766712162716,2.95468491,120.51,120.48,0.79475851]
[1766712162917,2.95468491,120.51,120.48,1.50475851]
[1766712163834,0.67,120.51,120.48,1.50475851]
[1766712164038,8.29762882,120.52,120.48,60.45475852]
[1766712164207,12.72235787,120.53,120.49,0.72]
[1766712164413,2.28468491,120.53,120.5,0.72]
[1766712165307,2.93468491,120.53,120.5,0.72]
[1766712166319,0.65,120.53,120.5,0.72]
[1766712166519,2.93468491,120.53,120.5,0.72]
[1766712169022,24.92211838,120.56,120.5,2.28468491]
[1766712169216,2.28468491,120.56,120.53,0.72]
[1766712169416,11.22884369,120.57,120.53,0.72]
[1766712169616,10.43767296,120.56,120.53,0.72]
[1766712169837,11.22884369,120.57,120.53,0.72]
[1766712170042,10.43767296,120.56,120.53,0.72]
[1766712170830,11.22884369,120.57,120.53,0.72]
[1766712171037,10.43767296,120.56,120.53,0.72]
[1766712175931,0.65,120.55,120.52,0.72]
[1766712176133,0.65,120.54,120.51,60.38000001]
[1766712176638,2.28468491,120.55,120.51,59.66000001]
[1766712176840,2.93468491,120.55,120.52,0.72]
[1766712178750,2.93468491,120.55,120.52,60.38000001]
[1766712181126,0.65,120.55,120.52,60.38000001]
[1766712181326,10.43767296,120.56,120.53,0.72]
[1766712181532,10.43767296,120.56,120.54,0.72]
[1766712181734,36.14640062,120.58,120.54,0.72]
[1766712181735,33.86171571,120.58,120.54,3.00468491]
[1766712181928,33.86171571,120.58,120.55,0.72]
[1766712181929,5.56804712,120.57,120.55,0.72]
[1766712182231,8.50273203,120.57,120.54,0.72]
[1766712182557,0.65,120.55,120.52,60.38000001]
[1766712183433,13.37235787,120.55,120.52,60.38000001]
[1766712183632,0.65,120.54,120.52,59.66000001]
[1766712184231,13.37235787,120.55,120.52,60.38000001]
[1766712184834,10.43767296,120.55,120.53,0.72]
[1766712185538,2.93468491,120.56,120.53,0.72]
[1766712185731,11.2294073,120.56,120.53,0.72]
[1766712185932,12.51665737,120.56,120.53,0.72]
[1766712187157,5.57201786,120.55,120.53,0.72]
[1766712187535,11.86600558,120.57,120.53,59.66000001]
[1766712187740,5.57193319,120.56,120.54,0.72]
[1766712188652,22.95308871,120.58,120.54,0.72]
[1766712188867,11.08767296,120.58,120.54,0.72]
[1766712189240,11.08767296,120.58,120.55,0.72]
[1766712190268,14.65960794,120.58,120.55,0.72]
[1766712190450,4.22193498,120.57,120.54,60.38000001]
[1766712191456,0.65,120.57,120.54,60.38000001]
[1766712191661,22.95301109,120.58,120.54,60.38000001]
[1766712193257,22.95301109,120.58,120.54,0.72]
[1766712194656,19.38107611,120.58,120.54,0.72]
[1766712194848,22.95301109,120.58,120.54,0.72]
[1766712199264,22.95301109,120.58,120.54,60.38000001]
[1766712200870,22.95301109,120.58,120.55,0.72]
[1766712202268,22.95301109,120.58,120.54,59.66000001]
[1766712202269,3.57193498,120.57,120.54,59.66000001]
[1766712202453,22.99301109,120.58,120.54,60.38000001]
[1766712203372,22.99301109,120.58,120.55,0.72]
[1766712203670,3.57193498,120.57,120.55,0.72]
[1766712204573,12.5560648,120.57,120.54,60.38000001]
[1766712205171,8.98412982,120.57,120.54,60.38000001]
[1766712205345,12.5560648,120.57,120.54,60.38000001]
[1766712209063,9.84362329,120.56,120.54,59.66000001]
[1766712209275,4.26193498,120.56,120.54,59.66000001]
[1766712209750,3.57193498,120.56,120.54,59.66000001]
[1766712209946,4.26193498,120.55,120.52,0.72]
[1766712210167,3.57193498,120.54,120.52,0.72]
[1766712211975,12.55753005,120.55,120.52,0.72]
[1766712212163,11.86753005,120.55,120.52,0.72]
[1766712212675,10.43767296,120.55,120.52,0.72]
[1766712213071,9.00438748,120.57,120.52,0.72]
[1766712213072,8.29438748,120.57,120.53,4.23193498]
[1766712213250,23.01290921,120.58,120.54,0.66]
[1766712213451,5.58942602,120.57,120.54,0.66]
[1766712213852,5.58942602,120.57,120.54,12.13207392]
[1766712214070,5.58942602,120.57,120.55,0.66]
[1766712214875,0.71,120.6,120.55,3.57193498]
[1766712215081,0.71,120.6,120.56,3.57193498]
[1766712215263,11.14767296,120.6,120.56,3.57193498]
[1766712217493,10.43767296,120.6,120.56,3.57193498]
[1766712217981,11.14767296,120.6,120.56,3.57193498]
[1766712218184,11.14767296,120.6,120.57,3.57193498]
[1766712218185,10.43767296,120.6,120.57,3.57193498]
[1766712218856,11.14767296,120.6,120.56,11.86640467]
[1766712219062,0.71,120.6,120.56,11.86640467]
[1766712219273,0.71,120.6,120.57,3.57193498]
[1766712219468,11.14767296,120.61,120.57,3.57193498]
[1766712219667,0.71,120.63,120.59,3.57193498]
[1766712219874,10.43767296,120.62,120.58,3.57193498]
[1766712221267,23.01031968,120.62,120.57,8.29334599]
[1766712221478,23.01031968,120.62,120.57,11.86528097]
[1766712222789,23.01031968,120.62,120.57,8.29334599]
[1766712222993,23.01031968,120.62,120.57,3.57193498]
[1766712223197,19.4383847,120.62,120.57,3.57193498]
[1766712223379,23.01031968,120.62,120.57,3.57193498]
[1766712223572,22.30031968,120.62,120.57,3.57193498]
[1766712224696,22.30031968,120.62,120.55,29.03359601]
[1766712224896,22.30031968,120.62,120.57,3.57193498]
[1766712225975,14.00960794,120.62,120.57,11.86566107]
[1766712226472,14.00960794,120.62,120.57,8.29372609]
[1766712226674,14.00960794,120.62,120.57,11.86566107]
[1766712226977,5.57453235,120.61,120.57,11.86566107]
[1766712227698,5.57453235,120.61,120.58,3.57193498]
[1766712227888,5.57453235,120.61,120.58,15.0440089]
[1766712228394,10.43767297,120.64,120.6,3.57193498]
[1766712228580,5.57246756,120.63,120.6,3.57193498]
[1766712228785,6.23246756,120.63,120.6,3.57193498]
[1766712229104,0.66,120.63,120.6,3.57193498]
[1766712229901,11.09767296,120.63,120.59,3.57193498]
[1766712230480,11.09767296,120.63,120.59,11.86448394]
[1766712231998,0.66,120.62,120.58,11.47207392]
[1766712232302,0.66,120.61,120.58,11.47207392]
[1766712232494,0.66,120.61,120.57,19.76544798]
[1766712232699,0.66,120.61,120.57,23.33738296]
[1766712233403,0.66,120.62,120.58,11.86512856]
[1766712235906,11.09767296,120.63,120.59,3.57193498]
[1766712236207,11.09767296,120.63,120.59,11.86425603]
[1766712237409,11.86106017,120.64,120.59,11.86425603]
[1766712237410,0.66000001,120.64,120.6,3.57193498]
[1766712237589,0.66000001,120.64,120.6,15.0440089]
[1766712237785,0.66000001,120.64,120.6,11.47207392]
[1766712238303,0.66000001,120.64,120.6,15.0440089]
[1766712239213,0.66000001,120.64,120.6,23.33580238]
[1766712243724,0.66000001,120.64,120.6,19.7638674]
[1766712243895,0.66000001,120.64,120.6,23.33580238]
[1766712247028,4.23193499,120.64,120.6,19.7638674]
[1766712247621,0.66000001,120.64,120.6,23.33580238]
[1766712247931,0.66000001,120.64,120.6,22.04674215]
[1766712248109,0.66000001,120.64,120.6,19.7638674]
[1766712248427,0.66000001,120.64,120.6,22.04674215]
[1766712250634,2.94287476,120.64,120.6,19.7638674]
[1766712251040,0.66,120.63,120.6,11.47207392]
[1766712253115,0.66,120.63,120.6,19.76391602]
[1766712254415,0.66,120.63,120.6,11.47207392]
[1766712255508,1e-08,120.64,120.61,2.28287475]
[1766712255718,1e-08,120.64,120.62,2.28287475]
[1766712257346,1e-08,120.64,120.62,10.57320348]
[1766712257641,1e-08,120.64,120.62,8.29032873]
[1766712257943,1e-08,120.64,120.62,10.57320348]
[1766712259229,1e-08,120.64,120.62,8.29032873]
[1766712259530,1e-08,120.64,120.62,10.57320348]
[1766712260944,11.13767296,120.68,120.65,11.47207391]
[1766712261238,13.42054771,120.68,120.65,11.47207391]
[1766712261450,0.7,120.67,120.65,11.47207391]
[1766712261951,0.7,120.68,120.65,11.47207391]
[1766712262360,0.1,120.69,120.65,2.28287475]
[1766712262557,0.1,120.69,120.62,39.45424941]
[1766712262558,1e-08,120.69,120.67,2.28287475]
[1766712262738,1e-08,120.69,120.67,10.56927807]
[1766712264055,0.1,120.71,120.67,29.00406305]
[1766712264368,0.8,120.71,120.67,10.56927807]
[1766712264539,2.28287475,120.7,120.66,8.28760528]
[1766712264744,0.7,120.68,120.65,8.28792331]
[1766712264954,0.7,120.68,120.64,2.28287475]
[1766712264955,0.7,120.68,120.64,8.28885851]
[1766712265256,2.98287475,120.65,120.6,2.28287475]
[1766712265436,2.98287475,120.65,120.61,8.29074712]
[1766712266657,2.98287475,120.65,120.62,8.2904876]
[1766712266959,2.98287475,120.65,120.61,8.29118646]
[1766712267455,0.7,120.65,120.61,8.29118646]
[1766712267640,2.98287475,120.65,120.61,8.29118646]
[1766712268858,0.7,120.65,120.61,10.57406121]
[1766712269048,0.7,120.67,120.61,31.30202738]
[1766712269250,2.98287475,120.66,120.61,31.30202738]
[1766712269835,0.7,120.66,120.62,2.28287475]
[1766712270070,0.7,120.68,120.64,2.28287475]
[1766712270734,2.98287475,120.7,120.65,2.28287475]
[1766712270937,2.98287475,120.7,120.66,2.28287475]
[1766712271151,2.98287475,120.7,120.66,10.5702533]
[1766712271356,0.7,120.69,120.66,8.28737855]
[1766712271662,0.7,120.69,120.66,19.75945246]
[1766712273255,0.7,120.69,120.66,22.04232721]
[1766712274057,0.1,120.71,120.68,2.28287475]
[1766712274258,0.1,120.71,120.69,2.28287475]
[1766712274573,0.1,120.71,120.66,40.47882922]
[1766712274861,0.1,120.71,120.69,2.28287475]
[1766712275034,0.1,120.71,120.66,42.76170397]
[1766712275234,0.1,120.71,120.69,10.56840176]
[1766712275450,0.1,120.71,120.68,8.28622872]
[1766712275656,0.8,120.71,120.68,2.28287475]
[1766712276063,0.8,120.71,120.67,8.28658829]
[1766712276242,0.8,120.71,120.68,2.28287475]
[1766712276764,0.8,120.71,120.67,8.28682388]
[1766712276973,0.8,120.71,120.67,10.56969863]
[1766712278548,0.8,120.71,120.68,2.28287475]
[1766712279770,0.8,120.71,120.67,2.28287475]
[1766712281669,0.8,120.71,120.68,2.28287475]
[1766712283364,0.8,120.71,120.67,10.56944866]
[1766712284379,0.8,120.71,120.67,73.26944866]
[1766712284569,0.8,120.71,120.68,2.28287475]
[1766712285877,0.8,120.71,120.67,73.26944866]
[1766712286579,0.8,120.71,120.68,10.56916539]
[1766712287597,0.68,120.7,120.67,73.2698813]
[1766712289786,0.78,120.71,120.68,2.28287475]
[1766712290280,0.78,120.71,120.68,64.98287475]
[1766712290991,0.78,120.71,120.68,73.26909287]
[1766712292674,0.78,120.71,120.68,70.98621812]
[1766712293991,0.78,120.71,120.68,73.26909287]
[1766712294898,0.1,120.71,120.68,73.26909287]
[1766712295599,0.1,120.71,120.69,10.56848839]
[1766712295897,0.1,120.71,120.69,73.26848839]
[1766712297877,0.1,120.71,120.69,70.98561364]
[1766712298394,0.76,120.71,120.69,70.98561364]
[1766712299676,0.76,120.71,120.69,62.7]
[1766712302379,0.76,120.71,120.69,70.9853758]
[1766712303989,0.1,120.71,120.69,70.9853758]
[1766712304996,0.76,120.71,120.69,70.9853758]
[1766712305197,0.76,120.71,120.69,62.7]
[1766712307605,2.38287475,120.71,120.69,62.7]
[1766712307795,0.66,120.7,120.69,62.7]
[1766712309889,2.94287475,120.7,120.69,57.93]
[1766712310093,4.22354404,120.7,120.69,57.93]
[1766712310693,0.66,120.7,120.69,57.93]
[1766712311394,4.22354404,120.7,120.69,57.93]
[1766712312400,0.56,120.69,120.66,11.95496358]
[1766712312701,0.56,120.67,120.66,11.95496358]
[1766712312918,4.12354404,120.67,120.66,11.85496358]
[1766712313095,4.12354404,120.67,120.63,0.72]
[1766712313295,4.02354404,120.66,120.62,12.57387255]
[1766712314612,4.02354404,120.66,120.63,0.67]
[1766712316936,4.02354404,120.65,120.62,0.67]
[1766712319704,3.56354404,120.66,120.62,0.67]
[1766712319902,10.43767296,120.67,120.65,0.67]
[1766712320090,0.46,120.68,120.65,0.67]
[1766712321519,4.02354404,120.68,120.65,0.67]
[1766712322618,18.7237501,120.69,120.66,0.67]
[1766712322619,14.461217,120.69,120.66,0.67]
[1766712323405,10.89767296,120.69,120.66,0.67]
[1766712323609,14.461217,120.69,120.66,0.67]
[1766712324124,22.84580969,120.71,120.67,0.67]
[1766712324623,12.40813673,120.71,120.67,0.67]
[1766712325924,22.84580969,120.71,120.67,0.67]
[1766712326413,19.28226565,120.71,120.67,0.67]
[1766712326722,14.561217,120.71,120.68,0.67]
[1766712327309,14.101217,120.71,120.68,0.67]
[1766712330323,10.53767296,120.71,120.68,0.67]
[1766712330627,14.101217,120.71,120.68,0.67]
[1766712331126,14.561217,120.71,120.67,3.56354404]
[1766712331327,0.1,120.71,120.69,0.67]
[1766712331710,0.1,120.71,120.67,11.85047629]
[1766712331909,0.1,120.71,120.68,0.67]
[1766712333236,0.1,120.71,120.69,0.67]
[1766712333608,0.1,120.71,120.68,0.67]
[1766712333609,0.56,120.71,120.68,0.67]
[1766712334739,4.12354404,120.71,120.68,0.67]
[1766712335620,3.66354404,120.71,120.68,0.67]
[1766712336024,0.1,120.71,120.68,0.67]
[1766712336222,4.12354404,120.71,120.68,0.67]
[1766712337042,4.12354404,120.71,120.68,12.52496358]
[1766712337224,4.12354404,120.71,120.68,20.8112405]
[1766712337424,0.56,120.71,120.68,20.8112405]
[1766712338237,0.1,120.71,120.68,20.8112405]
[1766712338541,4.12354404,120.71,120.68,12.52496358]
[1766712339812,0.1,120.71,120.69,0.67]
[1766712340430,0.56,120.71,120.68,20.81125]
[1766712342022,0.56,120.71,120.68,12.52496358]
[1766712347145,0.46,120.7,120.68,11.85496358]
[1766712347321,4.02354404,120.7,120.68,11.85496358]
[1766712347520,4.02354404,120.69,120.65,4.25354404]
[1766712347821,4.02354404,120.68,120.65,0.69]
[1766712349850,3.56354404,120.67,120.65,0.69]
[1766712350844,3.56354404,120.67,120.63,8.28959752]
[1766712351031,0.46,120.66,120.63,0.69]
[1766712351224,4.02354404,120.66,120.63,0.69]
[1766712351422,4.02354404,120.65,120.61,8.9809511]
[1766712351624,4.02354404,120.65,120.61,11.85471327]
[1766712351823,4.02354404,120.65,120.62,0.69]
[1766712353327,0.46,120.65,120.62,0.69]
[1766712353526,4.02354404,120.65,120.62,0.69]
[1766712354752,3.56354404,120.65,120.62,0.69]
[1766712354936,14.461217,120.66,120.62,0.69]
[1766712355643,3.56354404,120.65,120.62,0.69]
[1766712357456,3.56354404,120.65,120.62,12.54496358]
[1766712359156,4.02354404,120.65,120.62,12.54496358]
[1766712362348,14.461217,120.66,120.63,0.69]
[1766712363359,14.461217,120.66,120.63,12.54496358]
[1766712364560,10.43767296,120.66,120.63,11.85496358]
[1766712364770,14.001217,120.66,120.64,0.69]
[1766712367940,14.461217,120.66,120.64,0.69]
[1766712368152,3.56354404,120.65,120.63,12.54496358]
[1766712368550,3.56354404,120.65,120.64,0.69]
[1766712368738,14.001217,120.66,120.64,0.69]
[1766712371969,12.71988152,120.66,120.64,0.69]
[1766712374779,12.71988152,120.66,120.63,11.85496358]
[1766712375078,13.17988152,120.66,120.64,0.69]
[1766712375668,10.43767296,120.66,120.64,0.69]
[1766712376465,12.71988152,120.66,120.64,0.69]
[1766712376870,0.46,120.7,120.65,0.69]
[1766712377049,2.74220856,120.69,120.65,0.69]
[1766712377245,13.17988152,120.69,120.65,0.69]
[1766712377970,2.28220856,120.68,120.65,0.69]
[1766712384674,2.74220856,120.68,120.65,0.69]
[1766712386573,0.46,120.65,120.62,0.69]
[1766712386772,2.74220856,120.65,120.62,0.69]
[1766712387973,11.03066459,120.65,120.62,0.69]
[1766712388373,0.46,120.65,120.62,0.69]
[1766712389158,11.03021211,120.66,120.62,0.69]
[1766712390381,5.58481659,120.65,120.62,0.69]
[1766712390588,5.58481659,120.65,120.62,2.28220856]
[1766712390882,2.95220856,120.68,120.64,0.69]
[1766712391057,0.67,120.67,120.64,0.69]
[1766712391665,10.56839833,120.69,120.65,0.69]
[1766712391893,11.23839833,120.69,120.65,0.69]
[1766712392096,21.67607129,120.69,120.65,0.69]
[1766712392583,0.67,120.68,120.65,0.69]
[1766712393770,0.77,120.71,120.67,0.69]
[1766712394062,2.95220856,120.7,120.67,0.69]
[1766712394267,0.67,120.7,120.67,0.69]
[1766712394883,2.95220856,120.7,120.67,0.69]
[1766712397789,0.67,120.7,120.67,0.69]
[1766712398483,12.81988152,120.71,120.67,0.69]
[1766712398685,13.48988152,120.71,120.67,0.69]
[1766712398891,0.67,120.7,120.67,0.69]
[1766712404474,0.67,120.7,120.67,12.54496358]
[1766712411922,2.95220856,120.7,120.67,12.54496358]
[1766712412419,0.67,120.7,120.67,12.54496358]
[1766712413218,2.95220856,120.7,120.67,12.54496358]
[1766712414319,0.67,120.7,120.67,12.54496358]
[1766712414529,0.67,120.7,120.68,0.72]
[1766712415005,0.67,120.7,120.67,12.57496358]
[1766712416091,0.67,120.7,120.68,0.72]
[1766712419124,0.67,120.7,120.67,12.57496358]
[1766712419523,2.95220856,120.7,120.67,12.57496358]
[1766712419702,0.67,120.7,120.67,12.57496358]
[1766712424536,10.53767296,120.71,120.67,20.14156013]
[1766712424733,13.48988152,120.71,120.68,0.72]
[1766712424943,0.67,120.7,120.68,0.72]
[1766712427732,12.81988152,120.71,120.68,0.72]
[1766712428112,0.1,120.72,120.68,8.28623929]
[1766712428314,0.1,120.72,120.69,0.72]
[1766712428511,0.77,120.72,120.69,0.72]
[1766712428711,0.1,120.72,120.69,0.72]
[1766712428933,0.77,120.72,120.69,0.72]
[1766712429234,0.1,120.72,120.7,0.72]
[1766712429735,0.1,120.73,120.71,0.72]
[1766712432713,0.77,120.73,120.7,0.72]
[1766712433010,3.05220856,120.73,120.7,0.72]
[1766712433210,0.77,120.73,120.7,9.00475045]
[1766712433817,0.77,120.73,120.7,20.85971403]
[1766712434018,0.77,120.73,120.71,8.97428405]
[1766712434019,0.1,120.73,120.71,8.97428405]
[1766712434221,0.1,120.73,120.72,0.69]
[1766712434821,0.1,120.73,120.71,0.69]
[1766712437834,1e-08,120.73,120.72,0.69]
[1766712438219,1e-08,120.73,120.72,4.25129447]
[1766712438415,1e-08,120.73,120.72,12.53492601]
[1766712438652,0.65,120.78,120.73,0.69]
[1766712438945,5.57489494,120.77,120.74,4.25129447]
[1766712439117,0.65,120.78,120.75,0.69]
[1766712439536,0.75,120.79,120.76,4.25129447]